fUST/lending_fUST_20250611
["ID","MTS","AMOUNT","RATE_DAILY","PERIOD"]
[365299970,1749586251131,-460.0,0.00023561,4]
[365299971,1749586251140,-2237.41,0.00023561,4]
[365299972,1749586251151,-474.24,0.00023561,4]
[365299973,1749586251160,-460.0,0.00023561,4]
[365299974,1749586251170,-578.73,0.00023561,4]
[365299975,1749586251179,-460.0,0.00023561,4]
[365299976,1749586251189,-460.0,0.00023561,4]
[365299977,1749586251199,-460.0,0.00023561,4]
[365299978,1749586251207,-460.0,0.00023561,4]
[365299979,1749586251217,-460.0,0.00023561,4]
[365299980,1749586251226,-460.0,0.00023561,4]
[365299981,1749586251235,-549.19,0.00023561,4]
[365299982,1749586251244,-460.0,0.00023561,4]
[365299983,1749586251254,-555.45,0.00023561,4]
[365299984,1749586251263,-460.0,0.00023561,2]
[365299985,1749586251272,-2456.03,0.00023561,4]
[365299986,1749586251282,-592.42,0.00023561,4]
[365299987,1749586251291,-460.0,0.00023561,4]
[365299988,1749586251300,-2737.32,0.00023561,4]
[365299989,1749586251310,-1837.72,0.00023561,4]
[365299990,1749586251319,-514.49745214,0.00023561,4]
[365299991,1749586251329,-1958.56,0.00023561,4]
[365299992,1749586251338,-460.0,0.00023561,4]
[365299993,1749586251348,-2244.78,0.00023561,4]
[365299994,1749586251358,-460.0,0.00023561,4]
[365299995,1749586251367,-460.0,0.00023561,4]
[365299996,1749586251377,-460.0,0.00023561,4]
[365299997,1749586251386,-460.0,0.00023561,4]
[365299998,1749586251397,-460.0,0.00023561,4]
[365299999,1749586251406,-2426.17,0.00023561,4]
[365300000,1749586251416,-360.0,0.00023561,4]
[365300001,1749586251426,-1568.49,0.00023561,4]
[365300002,1749586251435,-460.0,0.00023561,4]
[365300003,1749586251447,-460.0,0.00023561,4]
[365300004,1749586251456,-726.64,0.00023561,4]
[365300005,1749586251465,-1468.13,0.00023561,4]
[365300006,1749586251475,-598.13,0.00023561,4]
[365300007,1749586251484,-526.26156429,0.00023564,2]
[365300008,1749586251494,-1500.0,0.00023568,2]
[365300009,1749586251503,-1000.0,0.00023568,2]
[365300010,1749586251513,-1006.27683546,0.00023568,2]
[365300011,1749586251522,-1800.0,0.00023568,2]
[365300012,1749586251533,-3000.0,0.0002357,2]
[365300013,1749586251543,-3000.0,0.0002358,2]
[365300014,1749586251554,-151.0,0.0002358,7]
[365300015,1749586251563,-151.0,0.0002358,7]
[365300016,1749586251572,-151.0,0.0002358,7]
[365300017,1749586251584,-1750.456,0.00023584,2]
[365300018,1749586251593,-226.56573404,0.00023588,75]
[365300019,1749586251602,-3000.0,0.0002359,2]
[365300020,1749586251612,-16040.50329943,0.000236,2]
[365300021,1749586251623,-18056.07607057,0.000236,2]
[365300022,1749586251632,-46258.07,0.000236,2]
[365300023,1749586251641,-3000.0,0.000236,2]
[365300024,1749586251650,-151.0,0.000236,10]
[365300025,1749586251660,-151.0,0.000236,7]
[365300026,1749586251669,-151.0,0.000236,7]
[365300027,1749586251679,-3000.0,0.0002361,2]
[365300028,1749586251688,-159.41069739,0.00023616,2]
[365300029,1749586251697,-3000.0,0.0002362,2]
[365300030,1749586251706,-3000.0,0.0002363,2]
[365300031,1749586251716,-151.0,0.00023637,7]
[365300032,1749586251725,-219.96597335,0.00023639,2]
[365300033,1749586251735,-4095.109001,0.0002364,2]
[365300034,1749586251744,-151.0,0.0002364,7]
[365300035,1749586251753,-151.0,0.0002364,7]
[365300036,1749586251762,-151.0,0.0002364,7]
[365300037,1749586251771,-151.0,0.0002364,7]
[365300038,1749586251781,-257.4614437,0.00023653,2]
[365300039,1749586251790,-3550.01159571,0.00023659,9]
[365300040,1749586251799,-151.0,0.00023659,7]
[365300041,1749586251808,-151.0,0.00023659,7]
[365300042,1749586251817,-1000.0,0.00023684,2]
[365300043,1749586251826,-501.85277261,0.00023684,2]
[365300044,1749586251835,-302.13665249,0.00023684,2]
[365300045,1749586251844,-1295.51,0.000237,7]
[365300046,1749586251854,-2020.19,0.00023745,2]
[365300047,1749586251863,-159.41069739,0.00023753,2]
[365300048,1749586251871,-211.0,0.00023759,2]
[365300049,1749586251881,-587.0,0.00023759,2]
[365300050,1749586251890,-183.0,0.00023759,2]
[365300051,1749586251899,-3550.01159571,0.00023762,9]
[365300052,1749586251908,-439.0150146,0.00023816,2]
[365300053,1749586251919,-151.0,0.00023835,7]
[365300054,1749586251929,-151.0,0.00023835,7]
[365300055,1749586251938,-153.43060188,0.00023835,4]
[365300056,1749586251947,-151.0,0.00023835,7]
[365300057,1749586251956,-460.0,0.00023835,4]
[365300058,1749586251966,-460.0,0.00023835,4]
[365300059,1749586251975,-151.0,0.00023835,7]
[365300060,1749586251984,-151.0,0.00023835,7]
[365300061,1749586251993,-460.0,0.00023835,4]
[365300062,1749586252002,-745.95,0.00023835,4]
[365300063,1749586252011,-460.0,0.00023835,4]
[365300064,1749586252020,-460.0,0.00023835,4]
[365300065,1749586252029,-479.58,0.00023835,4]
[365300066,1749586252038,-460.0,0.00023835,4]
[365300067,1749586252047,-151.0,0.00023835,7]
[365300068,1749586252056,-240.0,0.00023835,4]
[365300069,1749586252065,-590.0,0.00023835,4]
[365300070,1749586252074,-606.89,0.00023835,4]
[365300071,1749586252084,-460.0,0.00023835,4]
[365300072,1749586252094,-460.0,0.00023835,4]
[365300073,1749586252103,-151.676002,0.00023835,7]
[365300074,1749586252112,-151.0,0.00023835,7]
[365300075,1749586252121,-460.0,0.00023835,4]
[365300076,1749586252130,-460.0,0.00023835,4]
[365300077,1749586252140,-653.4,0.00023835,4]
[365300078,1749586252149,-460.0,0.00023835,4]
[365300079,1749586252158,-154.155679,0.00023835,7]
[365300080,1749586252167,-460.0,0.00023835,4]
[365300081,1749586252176,-460.0,0.00023835,4]
[365300082,1749586252185,-2237.41,0.00023835,4]
[365300083,1749586252194,-460.0,0.00023835,4]
[365300084,1749586252203,-578.73,0.00023835,4]
[365300085,1749586252212,-460.0,0.00023835,4]
[365300086,1749586252221,-460.0,0.00023835,4]
[365300087,1749586252232,-460.0,0.00023835,4]
[365300088,1749586252242,-379.369,0.00023835,7]
[365300089,1749586252252,-460.0,0.00023835,4]
[365300090,1749586252261,-379.369,0.00023835,7]
[365300091,1749586252271,-460.0,0.00023835,4]
[365300092,1749586252280,-460.0,0.00023835,4]
[365300093,1749586252290,-549.19,0.00023835,4]
[365300094,1749586252299,-460.0,0.00023835,4]
[365300095,1749586252308,-555.45,0.00023835,4]
[365300096,1749586252317,-460.0,0.00023835,2]
[365300097,1749586252326,-2456.03,0.00023835,4]
[365300098,1749586252335,-592.42,0.00023835,4]
[365300099,1749586252345,-460.0,0.00023835,4]
[365300100,1749586252354,-2737.32,0.00023835,4]
[365300101,1749586252364,-1837.72,0.00023835,4]
[365300102,1749586252373,-1958.56,0.00023835,4]
[365300103,1749586252383,-460.0,0.00023835,4]
[365300104,1749586252392,-2244.78,0.00023835,4]
[365300105,1749586252401,-460.0,0.00023835,4]
[365300106,1749586252411,-460.0,0.00023835,4]
[365300107,1749586252421,-460.0,0.00023835,4]
[365300108,1749586252430,-460.0,0.00023835,4]
[365300109,1749586252439,-460.0,0.00023835,4]
[365300110,1749586252448,-2426.17,0.00023835,4]
[365300111,1749586252458,-1568.49,0.00023835,4]
[365300112,1749586252468,-460.0,0.00023835,4]
[365300113,1749586252478,-361.84104812,0.00023835,4]
[365300114,1749586252487,-726.64,0.00023835,4]
[365300115,1749586252497,-1468.13,0.00023835,4]
[365300116,1749586252507,-598.13,0.00023835,4]
[365300117,1749586252516,-439.0150146,0.00023836,2]
[365300118,1749586252525,-151.0,0.00023845,7]
[365300119,1749586252534,-159.41069739,0.00023863,2]
[365300120,1749586252544,-2000.0,0.00023864,2]
[365300121,1749586252553,-3550.01159571,0.00023866,10]
[365300122,1749586252562,-600.0,0.00023889,2]
[365300123,1749586252571,-560.43883452,0.000239,2]
[365300124,1749586252583,-364.9269501,0.00023918,2]
[365300125,1749586252592,-3550.01159571,0.00023969,10]
[365300126,1749586252601,-800.0,0.00023995,2]
[365300127,1749586252610,-159.41069739,0.00024,2]
[365300128,1749586252619,-151.0,0.00024,10]
[365300129,1749586252629,-150.46124919,0.00024002,2]
[365300130,1749586252638,-1058.51181182,0.00024009,2]
[365300131,1749586252647,-151.0,0.00024052,7]
[365300132,1749586252658,-174.9060925,0.00024055,2]
[365300133,1749586252668,-158.7504224,0.00024055,2]
[365300134,1749586252677,-153.0,0.00024055,2]
[365300135,1749586252687,-3550.01159571,0.00024072,10]
[365300136,1749586252697,-5000.0,0.00024077,2]
[365300137,1749586252706,-1058.51181178,0.00024097,2]
[365300138,1749586252715,-1323.04,0.000241,2]
[365300139,1749586252724,-315.18454239,0.000241,10]
[365300140,1749586252734,-11858.11761888,0.000241,10]
[365300141,1749586252742,-842.5625,0.000241,10]
[365300142,1749586252751,-460.0,0.00024109,4]
[365300143,1749586252760,-190.0,0.00024109,4]
[365300144,1749586252770,-460.0,0.00024109,4]
[365300145,1749586252779,-745.95,0.00024109,4]
[365300146,1749586252788,-460.0,0.00024109,4]
[365300147,1749586252797,-460.0,0.00024109,4]
[365300148,1749586252806,-460.0,0.00024109,4]
[365300149,1749586252816,-606.89,0.00024109,4]
[365300150,1749586252825,-299.68,0.00024109,4]
[365300151,1749586252835,-460.0,0.00024109,4]
[365300152,1749586252845,-300.0,0.00024109,4]
[365300153,1749586252854,-460.0,0.00024109,4]
[365300154,1749586252863,-653.4,0.00024109,4]
[365300155,1749586252872,-460.0,0.00024109,4]
[365300156,1749586252881,-460.0,0.00024109,4]
[365300157,1749586252890,-460.0,0.00024109,4]
[365300158,1749586252899,-2237.41,0.00024109,4]
[365300159,1749586252908,-460.0,0.00024109,4]
[365300160,1749586252918,-578.73,0.00024109,4]
[365300161,1749586252927,-460.0,0.00024109,4]
[365300162,1749586252936,-460.0,0.00024109,4]
[365300163,1749586252945,-460.0,0.00024109,4]
[365300164,1749586252955,-460.0,0.00024109,4]
[365300165,1749586252965,-460.0,0.00024109,4]
[365300166,1749586252976,-460.0,0.00024109,4]
[365300167,1749586252986,-549.19,0.00024109,4]
[365300168,1749586252995,-460.0,0.00024109,4]
[365300169,1749586253005,-555.45,0.00024109,4]
[365300170,1749586253014,-460.0,0.00024109,2]
[365300171,1749586253023,-2456.03,0.00024109,4]
[365300172,1749586253032,-592.42,0.00024109,4]
[365300173,1749586253042,-460.0,0.00024109,4]
[365300174,1749586253052,-2737.32,0.00024109,4]
[365300175,1749586253061,-1837.72,0.00024109,4]
[365300176,1749586253070,-1958.56,0.00024109,4]
[365300177,1749586253079,-460.0,0.00024109,4]
[365300178,1749586253088,-2244.78,0.00024109,4]
[365300179,1749586253194,-460.0,0.00024109,4]
[365300180,1749586253204,-460.0,0.00024109,4]
[365300181,1749586253213,-460.0,0.00024109,4]
[365300182,1749586253222,-460.0,0.00024109,4]
[365300183,1749586253232,-460.0,0.00024109,4]
[365300184,1749586253242,-2426.17,0.00024109,4]
[365300185,1749586253251,-1568.49,0.00024109,4]
[365300186,1749586253261,-460.0,0.00024109,4]
[365300187,1749586253270,-726.64,0.00024109,4]
[365300188,1749586253280,-1468.13,0.00024109,4]
[365300189,1749586253289,-598.13,0.00024109,4]
[365300190,1749586253299,-159.41069739,0.0002411,2]
[365300191,1749586253308,-282.61606172,0.0002411,3]
[365300192,1749586253318,-500.0,0.00024116,2]
[365300193,1749586253327,-250.0,0.00024121,2]
[365300194,1749586253337,-282.0,0.00024139,2]
[365300195,1749586253346,-439.0150146,0.00024148,2]
[365300196,1749586253356,-3550.01159571,0.00024176,10]
[365300197,1749586253365,-1058.51181178,0.00024186,2]
[365300198,1749586253374,-109728.57,0.000242,7]
[365300199,1749586253384,-151.0,0.000242,7]
[365300200,1749586253393,-800.0,0.00024209,2]
[365300201,1749586253403,-151.0,0.00024232,7]
[365300202,1749586253413,-501.61992717,0.00024232,2]
[365300203,1749586253422,-159.41069739,0.00024247,2]
[365300204,1749586253432,-151.0,0.0002426,7]
[365300205,1749586253441,-1058.51181178,0.00024274,2]
[365300206,1749586253450,-151.0,0.00024279,7]
[365300207,1749586253460,-151.0,0.00024279,7]
[365300208,1749586253469,-151.0,0.00024279,7]
[365300209,1749586253478,-3550.01159571,0.00024279,10]
[365300210,1749586253488,-405.0,0.00024285,2]
[365300211,1749586253497,-151.0,0.000243,10]
[365300212,1749586253507,-500.0,0.00024337,2]
[365300213,1749586253517,-159.41069739,0.00024356,2]
[365300214,1749586253526,-9432.71,0.00024357,11]
[365300215,1749586253536,-15112.96,0.00024357,11]
[365300216,1749586253546,-1058.51181178,0.00024362,2]
[365300217,1749586253555,-3550.01159571,0.00024383,11]
[365300218,1749586253564,-151.0,0.00024383,7]
[365300219,1749586253574,-460.0,0.00024383,4]
[365300220,1749586253587,-590.0,0.00024383,4]
[365300221,1749586253596,-160.087901,0.00024383,7]
[365300222,1749586253605,-160.087901,0.00024383,7]
[365300223,1749586253615,-745.95,0.00024383,4]
[365300224,1749586253625,-460.0,0.00024383,4]
[365300225,1749586253637,-460.0,0.00024383,4]
[365300226,1749586253649,-260.18082664,0.00024383,4]
[365300227,1749586253661,-606.89,0.00024383,4]
[365300228,1749586253671,-460.0,0.00024383,4]
[365300229,1749586253680,-460.0,0.00024383,4]
[365300230,1749586253689,-653.4,0.00024383,4]
[365300231,1749586253698,-460.0,0.00024383,4]
[365300232,1749586253707,-560.0,0.00024383,4]
[365300233,1749586253716,-460.0,0.00024383,4]
[365300234,1749586253725,-2237.41,0.00024383,4]
[365300235,1749586253735,-578.73,0.00024383,4]
[365300236,1749586253745,-453.95770706,0.00024383,4]
[365300237,1749586253874,-1163.03711577,0.000217,2]
[365300238,1749586253884,-1163.03711577,0.00022052,2]
[365300239,1749586253894,-6.04229294,0.00024383,4]
[365300240,1749586253905,-460.0,0.00024383,4]
[365300241,1749586253914,-460.0,0.00024383,4]
[365300242,1749586253924,-460.0,0.00024383,4]
[365300243,1749586253933,-460.0,0.00024383,4]
[365300244,1749586253943,-523.7755976,0.00024383,4]
[365300245,1749586253953,-460.0,0.00024383,4]
[365300246,1749586253962,-549.19,0.00024383,4]
[365300247,1749586253971,-460.0,0.00024383,4]
[365300248,1749586253981,-555.45,0.00024383,4]
[365300249,1749586253990,-460.0,0.00024383,2]
[365300250,1749586253999,-2456.03,0.00024383,4]
[365300251,1749586254009,-592.42,0.00024383,4]
[365300252,1749586254018,-460.0,0.00024383,4]
[365300253,1749586254027,-2737.32,0.00024383,4]
[365300254,1749586254037,-1837.72,0.00024383,4]
[365300255,1749586254045,-1958.56,0.00024383,4]
[365300256,1749586254055,-460.0,0.00024383,4]
[365300257,1749586254065,-2244.78,0.00024383,4]
[365300258,1749586254077,-460.0,0.00024383,4]
[365300259,1749586254088,-598.44,0.00024383,4]
[365300260,1749586254097,-460.0,0.00024383,4]
[365300261,1749586254106,-460.0,0.00024383,4]
[365300262,1749586254116,-460.0,0.00024383,4]
[365300263,1749586254127,-2426.17,0.00024383,4]
[365300264,1749586254136,-1568.49,0.00024383,4]
[365300265,1749586254145,-460.0,0.00024383,4]
[365300266,1749586254156,-726.64,0.00024383,4]
[365300267,1749586254165,-1468.13,0.00024383,4]
[365300268,1749586254175,-598.13,0.00024383,4]
[365300269,1749586254184,-1132.592025,0.00024386,3]
[365300270,1749586254194,-151.0,0.000244,7]
[365300271,1749586254203,-151.0,0.000244,7]
[365300272,1749586254212,-151.0,0.000244,7]
[365300273,1749586254221,-129776.69,0.0002445,11]
[365300274,1749586254231,-1058.51181178,0.00024451,2]
[365300275,1749586254240,-151.0,0.00024468,7]
[365300276,1749586254249,-3550.01159571,0.00024486,11]
[365300277,1749586254259,-159.41069739,0.00024493,2]
[365300278,1749586254268,-196.75563594,0.00024532,2]
[365300279,1749586254277,-1058.51181178,0.00024539,2]
[365300280,1749586254287,-439.0150149,0.0002457,2]
[365300281,1749586254296,-3550.01159571,0.0002459,11]
[365300282,1749586254306,-906.96,0.000246,7]
[365300283,1749586254315,-159.41069739,0.00024603,2]
[365300284,1749586254325,-4784.51609176,0.00024625,2]
[365300285,1749586254571,-460.0,0.00021095,4]
[365300286,1749586254584,-1163.03711577,0.00022404,2]
[365300287,1749586254594,-215.48390824,0.00024625,2]
[365300288,1749586254603,-1058.51181178,0.00024627,2]
[365300289,1749586254612,-460.0,0.00024657,4]
[365300290,1749586254622,-151.0,0.00024657,7]
[365300291,1749586254632,-745.95,0.00024657,4]
[365300292,1749586254641,-460.0,0.00024657,4]
[365300293,1749586254652,-460.0,0.00024657,4]
[365300294,1749586254661,-151.0,0.00024657,7]
[365300295,1749586254671,-606.89,0.00024657,4]
[365300296,1749586254680,-151.0,0.00024657,7]
[365300297,1749586254690,-460.0,0.00024657,4]
[365300298,1749586254699,-653.4,0.00024657,4]
[365300299,1749586254709,-460.0,0.00024657,4]
[365300300,1749586254718,-460.0,0.00024657,4]
[365300301,1749586254727,-2237.41,0.00024657,4]
[365300302,1749586254736,-578.73,0.00024657,4]
[365300303,1749586254745,-460.0,0.00024657,4]
[365300304,1749586254755,-460.0,0.00024657,4]
[365300305,1749586254764,-460.0,0.00024657,4]
[365300306,1749586254773,-460.0,0.00024657,4]
[365300307,1749586254783,-379.369,0.00024657,7]
[365300308,1749586254792,-460.0,0.00024657,4]
[365300309,1749586254802,-379.369,0.00024657,7]
[365300310,1749586254811,-460.0,0.00024657,4]
[365300311,1749586254821,-549.19,0.00024657,4]
[365300312,1749586254830,-460.0,0.00024657,4]
[365300313,1749586254839,-555.45,0.00024657,4]
[365300314,1749586254849,-460.0,0.00024657,2]
[365300315,1749586254858,-2456.03,0.00024657,4]
[365300316,1749586254868,-390.99046496,0.00024657,4]
[365300321,1749586288645,210.0,0.00019726,3]
[365300327,1749586659517,209.84351,0.00019952,2]
[365300340,1749587130081,243.19204,0.00013699,2]
[365300346,1749587175030,539.51746546,0.000189,2]
[365300376,1749587306106,1919.61277587,0.00019,2]
[365300381,1749587315714,1580.6693401,0.00018,2]
[365300413,1749587364978,345.251929,0.00019846,2]
[365300414,1749587387236,18174.9613841,0.00024896,60]
[365300415,1749587389684,346.5,0.00024896,60]
[365300416,1749587400187,500.09,0.00024896,60]
[365300417,1749587400484,1903.56416707,0.00024896,60]
[365300418,1749587403102,1165.5529023,0.00022,120]
[365300419,1749587403137,1937.88456576,0.00024896,120]
[365300420,1749587403183,2547.65838429,0.00024896,120]
[365300422,1749587403217,8308.019999,0.00024658,120]
[365300496,1749587436227,500.0,0.00023885,120]
[365300497,1749587437007,500.0,0.00023885,120]
[365300498,1749587437782,500.0,0.00023885,120]
[365300512,1749587438378,-666.0,0.00020096,2]
[365300514,1749587438389,-300.0,0.00020154,2]
[365300516,1749587438399,-183.0,0.00020154,2]
[365300518,1749587438408,-300.0,0.00020154,2]
[365300520,1749587438418,-847.0,0.00020154,2]
[365300522,1749587438427,-4384.97098876,0.00020155,2]
[365300524,1749587438439,-1089.87739023,0.00020155,2]
[365300530,1749587438490,-14211.11133871,0.00020155,2]
[365300532,1749587438499,-243.19204,0.00020187,2]
[365300534,1749587438509,-150.46124919,0.00020995,2]
[365300536,1749587438518,-500.0,0.00021049,2]
[365300538,1749587438528,-172.434,0.00021085,2]
[365300540,1749587438537,-420.77,0.00021085,10]
[365300542,1749587438547,-447.13160177,0.00021095,4]
[365300544,1749587438556,-260.0,0.00021095,4]
[365300546,1749587438566,-440.0,0.00021095,4]
[365300548,1749587438576,-395.4643969,0.00021095,4]
[365300551,1749587438585,-460.0,0.00021095,4]
[365300553,1749587438595,-440.0,0.00021095,4]
[365300554,1749587438605,-433.38893907,0.00021095,4]
[365300557,1749587438615,-250.47288694,0.00021095,4]
[365300559,1749587438625,-432.64877443,0.00021095,4]
[365300561,1749587438635,-460.0,0.00021095,4]
[365300563,1749587438645,-460.0,0.00021095,4]
[365300565,1749587438655,-440.0,0.00021095,4]
[365300566,1749587438664,-460.0,0.00021095,4]
[365300568,1749587438674,-500.0,0.00021095,4]
[365300570,1749587438684,-500.0,0.00021095,4]
[365300572,1749587438693,-500.0,0.00021095,4]
[365300574,1749587438702,-500.0,0.00021095,4]
[365300577,1749587438715,-460.0,0.00021095,4]
[365300579,1749587438724,-460.0,0.00021095,4]
[365300581,1749587438734,-460.0,0.00021095,4]
[365300583,1749587438743,-460.0,0.00021095,4]
[365300584,1749587438752,-460.0,0.00021095,4]
[365300586,1749587438762,-460.0,0.00021095,4]
[365300588,1749587438772,-460.0,0.00021095,4]
[365300591,1749587438782,-420.0,0.00021095,4]
[365300592,1749587438792,-460.0,0.00021095,4]
[365300594,1749587438801,-420.0,0.00021095,4]
[365300596,1749587438811,-460.0,0.00021095,4]
[365300598,1749587438820,-420.0,0.00021095,4]
[365300600,1749587438829,-420.0,0.00021095,4]
[365300603,1749587438838,-200.90046319,0.00021095,4]
[365300605,1749587438848,-407.31550322,0.00021095,4]
[365300607,1749587438857,-267.08,0.00021095,4]
[365300609,1749587438866,-460.0,0.00021095,4]
[365300611,1749587438875,-460.0,0.00021095,4]
[365300612,1749587438885,-250.0,0.00021095,4]
[365300614,1749587438894,-460.0,0.00021095,4]
[365300616,1749587438903,-557.13,0.00021095,4]
[365300618,1749587438913,-394.82409152,0.00021095,4]
[365300620,1749587438922,-460.0,0.00021095,4]
[365300622,1749587438931,-460.0,0.00021095,4]
[365300623,1749587438940,-460.0,0.00021095,4]
[365300624,1749587438950,-199.90961659,0.00021095,4]
[365300625,1749587438959,-460.0,0.00021095,4]
[365300626,1749587438972,-460.0,0.00021095,4]
[365300627,1749587438982,-360.0,0.00021095,4]
[365300628,1749587438991,-460.0,0.00021095,4]
[365300629,1749587438999,-400.0,0.00021095,4]
[365300630,1749587439011,-460.0,0.00021095,4]
[365300631,1749587439020,-460.0,0.00021095,4]
[365300632,1749587439028,-350.0,0.00021095,4]
[365300633,1749587439039,-280.0,0.00021095,4]
[365300634,1749587439049,-554.14,0.00021095,4]
[365300635,1749587439059,-460.0,0.00021095,4]
[365300636,1749587439068,-460.0,0.00021095,4]
[365300637,1749587439077,-440.0,0.00021095,4]
[365300638,1749587439086,-460.0,0.00021095,4]
[365300639,1749587439095,-460.0,0.00021095,4]
[365300640,1749587439104,-460.0,0.00021095,4]
[365300641,1749587439113,-1691.86,0.00021095,4]
[365300642,1749587439123,-366.31376913,0.00021095,4]
[365300643,1749587439133,-460.0,0.00021095,4]
[365300644,1749587439142,-460.0,0.00021095,4]
[365300645,1749587439152,-460.0,0.00021095,4]
[365300646,1749587439161,-440.0,0.00021095,4]
[365300647,1749587439171,-460.0,0.00021095,4]
[365300648,1749587439182,-460.0,0.00021095,4]
[365300649,1749587439191,-460.0,0.00021095,4]
[365300650,1749587439200,-460.0,0.00021095,4]
[365300651,1749587439209,-460.0,0.00021095,4]
[365300652,1749587439219,-460.0,0.00021095,4]
[365300653,1749587439228,-460.0,0.00021095,4]
[365300654,1749587439238,-460.0,0.00021095,4]
[365300655,1749587439247,-460.0,0.00021095,4]
[365300656,1749587439256,-460.0,0.00021095,4]
[365300657,1749587439265,-420.0,0.00021095,4]
[365300658,1749587439275,-460.0,0.00021095,4]
[365300659,1749587439284,-460.0,0.00021095,4]
[365300660,1749587439293,-460.0,0.00021095,4]
[365300661,1749587439302,-460.0,0.00021095,4]
[365300662,1749587439311,-460.0,0.00021095,4]
[365300663,1749587439320,-460.0,0.00021095,4]
[365300664,1749587439329,-460.0,0.00021095,4]
[365300665,1749587439339,-460.0,0.00021095,4]
[365300666,1749587439348,-460.0,0.00021095,4]
[365300667,1749587439357,-500.0,0.00021095,4]
[365300668,1749587439365,-500.0,0.00021095,4]
[365300669,1749587439375,-500.0,0.00021095,4]
[365300670,1749587439383,-500.0,0.00021095,4]
[365300671,1749587439391,-500.0,0.00021095,4]
[365300672,1749587439401,-1801.06,0.00021095,4]
[365300673,1749587439410,-460.0,0.00021095,4]
[365300674,1749587439419,-460.0,0.00021095,4]
[365300675,1749587439428,-460.0,0.00021095,4]
[365300676,1749587439436,-460.0,0.00021095,4]
[365300677,1749587439444,-495.01,0.00021095,4]
[365300678,1749587439453,-460.0,0.00021095,4]
[365300679,1749587439462,-460.0,0.00021095,4]
[365300680,1749587439470,-460.0,0.00021095,4]
[365300681,1749587439479,-460.0,0.00021095,4]
[365300682,1749587439489,-356.68708832,0.00021095,4]
[365300683,1749587439498,-420.0,0.00021095,4]
[365300684,1749587439511,-460.0,0.00021095,4]
[365300685,1749587439520,-460.0,0.00021095,4]
[365300686,1749587439530,-460.0,0.00021095,2]
[365300687,1749587439539,-460.0,0.00021095,4]
[365300688,1749587439549,-460.0,0.00021095,4]
[365300689,1749587439558,-460.0,0.00021095,4]
[365300690,1749587439567,-460.0,0.00021095,4]
[365300691,1749587439703,-460.0,0.00021095,4]
[365300692,1749587439714,-460.0,0.00021095,4]
[365300693,1749587439725,-460.0,0.00021095,4]
[365300694,1749587439736,-460.0,0.00021095,4]
[365300695,1749587439745,-460.0,0.00021095,4]
[365300696,1749587439755,-460.0,0.00021095,4]
[365300697,1749587439764,-460.0,0.00021095,4]
[365300698,1749587439773,-1410.01,0.00021095,4]
[365300699,1749587439783,-420.0,0.00021095,4]
[365300700,1749587439792,-206.09601994,0.00021095,4]
[365300701,1749587439802,-437.51963141,0.00021095,4]
[365300702,1749587439811,-171.63523448,0.00021095,4]
[365300703,1749587439820,-1826.57,0.00021095,4]